{"text_format":"3","workbook":"xlsx","n_sheets":48,"sheets":["modReestr","Инструкция","Лог обновления","Титульный","Территории","Дифференциация","Доступ к товарам и услугам","Публикация в других источниках","Сведения об изменении","Комментарии","Проверка","AllSheetsInThisWorkbook","TEHSHEET","modCheckCyan","modSettings","modfrmSetForPrint","modInfo","et_union_hor","et_union_vert","modList00","modList01","modList02","modList03","modList07","modList09","modHTTP","modfrmRegion","MR_LIST","REESTR_VT","REESTR_VED","modfrmReestrObj","DataOrg","modProv","modfrmReestr","modUpdTemplMain","REESTR_ORG","modClassifierValidate","modHyp","modfrmDateChoose","modComm","modThisWorkbook","REESTR_MO","modfrmReestrMR","modServiceModule","modfrmCheckUpdates","REESTR_DS","REESTR_CHS","REESTR_LINK"],"not_rendered":{"images":22,"macros":1,"defined_names":214},"read":"whole","date_system":"1900"}

{"sheet":"modReestr","index":0,"n_rows":0,"n_cols":0,"rows_kept":0,"hidden":true}

{"sheet":"Инструкция","index":1,"n_rows":90,"n_cols":27,"rows_kept":90,"merged":[[1,1,1,6],[2,1,2,2],[4,1,4,24],[6,4,18,23],[20,5,20,12],[20,15,20,23],[21,5,21,12],[21,15,21,23],[22,15,22,22],[34,4,38,23],[39,4,39,23],[40,4,44,23],[45,4,56,23],[57,4,57,23],[58,4,58,6],[58,7,58,23],[59,4,59,6],[60,7,60,23],[69,4,69,23],[70,4,70,23],[71,5,71,23],[72,5,72,23],[73,5,73,23],[74,4,74,23],[75,4,75,23],[76,4,76,23],[77,4,77,23],[78,4,78,23],[79,4,79,23],[80,4,80,23],[81,4,81,23],[82,4,82,23],[83,4,83,23],[85,4,85,23],[87,5,87,18],[89,5,89,23]]}
[{"$nulls":26}," (требуется обновление)"]
[null,{"$f":"\"Код отчёта: \" & GetCode()","v":"Код отчёта: JKH.OPEN.INFO.QUARTER.GVS.6"}]
[null,{"$f":"\"Версия \" & GetVersion()","v":"Версия 1.1.1"}]
[]
[null,"Информация о наличии (отсутствии) технической возможности подключения к централизованной системе горячего водоснабжения, а также о регистрации и ходе реализации заявок о подключении к централизованной системе горячего водоснабжения"]
[]
[{"$nulls":4},"• На рабочем месте должен быть установлен MS Office 2003 SP3, 2007 SP3, 2010, 2013 с полной версией MS Excel                                                                                                                                • Для корректной работы отчета необходим доступ к сети \"Интернет\"                                                         \n                                                                                                                                                          • Макросы во время работы должны быть включены (!)\n• Для корректной работы отчёта требуется выбрать низкий уровень безопасности\n(В меню MS Excel 2003: Сервис | Макрос | Безопасность | выбрать пункт «Низкая безопасность» | OK)\n(В меню MS Excel 2007/2010/2013: Параметры Excel | Центр управления безопасностью | Параметры центра управления безопасностью | Параметры макросов | Включить все макросы | ОК)\n\n• Если Вы работаете в табличном процессоре MS Excel 2007 и выше, то можете использовать для работы формат XLSB (Двоичная книга Excel). При работе в формате XLSB заметно быстрее происходит сохранение файла, а также уменьшается размер по сравнению с форматами XLS и XLSM\n\n• Не рекомендуется снимать защиту с листов и каким-либо образом модифицировать защищаемые формулы и расчётные поля, в противном случае, отчёт будет отклонён системой\n• При сохранении не следует выбирать формат XLSX (Книга Excel), так как в указанном формате макросы, необходимые для работы отчёта, безвозвратно удаляются"]
{"$rows_empty":13}
[{"$nulls":4},"A"," - не обязательные для заполнения",{"$nulls":8},"A"," - с формулами и константами"]
[{"$nulls":4},"A"," - обязательные для заполнения",{"$nulls":8},"A"," - с выбором значений до двойному клику,"]
[{"$nulls":15},"либо с возможностью выбора даты из календаря или ручного ввода"]
{"$rows_empty":11}
[{"$nulls":4},"Если в предложенном Вам списке необходимая организация, МР/МО отсутствуют, обновите реестры с помощью кнопок\n\nВ результате синхронизации с базой данных список организаций (МР/МО) будет заменён актуальным (механизм синхронизации требует подключения к сети Интернет и основан на использовании протокола HTTPS (TCP порт 443))\n\nЕсли после обновления Вам не удалось найти необходимую организацию в списке, обратитесь к ответственному за поддержание реестра Вашего региона."]
{"$rows_empty":10}
[{"$nulls":4},"• При сохранении шаблона осуществляется проверка корректности данных, в том числе на наличие значений в ячейках, обязательных для заполнения\n\n• Если какая-то ячейка не удовлетворяет условию проверки, на лист «Проверка» добавляется гиперссылка на данную ячейку и указывается причина ошибки\n\n• В колонке «Статус» для каждого сообщения возможны 2 значения: ошибка и предупреждение\n\n• При наличии сообщений со статусом «Ошибка» шаблон будет отклонён системой и не будет загружен в хранилище данных, сообщения со статусом «Предупреждение» носят информационный характер, и такой шаблон будет принят системой"]
{"$rows_empty":11}
[{"$nulls":4},"Обратиться в службу технической поддержки"]
{"$rows_empty":11}
[{"$nulls":4},"Законодательная основа шаблона"]
[{"$nulls":4},"Данный шаблон разработан в соответствии с:"]
[{"$nulls":4}," • ","Постановлением Правительства РФ от 17.01.2013 N 6 \"О стандартах раскрытия информации в сфере водоснабжения и водоотведения\""]
[{"$nulls":4}," • ","Приказом ФСТ России от 15.05.2013 N 129 \"Об утверждении форм предоставления информации, подлежащей раскрытию, организациями, осуществляющими горячее водоснабжение, холодное водоснабжение и водоотведение, и органами регулирования тарифов, а также Правил заполнения таких форм\""]
[]
[{"$nulls":4},"Принципы работы с шаблоном"]
[{"$nulls":4},"  Перед началом работы с шаблоном Вам необходимо нажать кнопку \"Приступить к заполнению\", после чего на форме выбора выбрать из выпадающего списка нужный субъект РФ. После выбора субъекта РФ в шаблоне отобразятся листы для заполнения."]
[{"$nulls":4},"  На листе «Титульный» нужно заполнить все ячейки голубого цвета."]
[{"$nulls":4},"  На листе «Уведомление» «Адрес сайта в сети интернет» вводите, не нарушая цвет ячейки /если копируете гиперссылку из браузера, то выполните двойной щелчок левой кнопки мыши по ячейке и только после этого можете вставить скопированный элемент/.\n"]
[{"$nulls":4},"  При вводе даты на расчетных листах необходимо выбрать дату из календаря (иконка справа от выбранной ячейки), либо ввести дату непосредственно в ячейку в формате - 'ДД.ММ.ГГГГ'."]
[{"$nulls":4},"  Если какой-либо из показателей на расчетных листах для Вашей организации отсутствует, введите в поле, обязательное для заполнение, «0» (для числовых показателей) и «-» (для текстовых).\n"]
[{"$nulls":4},"  Внимательно следите за информационными сообщениями на расчетных листах."]
[{"$nulls":4},"  Все необходимые комментарии по всем формам Вы можете отразить на листе «Комментарии»."]
[{"$nulls":4},"Инструкция по загрузке сопроводительных материалов с помощью \"ЕИАС Мониторинг\""]
[{"$nulls":4},"Получить более полную Инструкцию для данного шаблона"]
[]
[{"$nulls":4},"При наличии подключения к Интернет, можно автоматически проверять наличие доступных обновлений. Выберите способ оповещения о наличии обновлений для отчёта:"]
[]
[{"$nulls":5},"проверять доступные обновления (рекомендуется)",{"$nulls":20},"y"]
[]
[{"$nulls":5},"никогда не проверять наличие обновлений (не рекомендуется)"]

{"sheet":"Лог обновления","index":2,"n_rows":9,"n_cols":3,"rows_kept":9,"hidden":true}
["Дата/Время","Сообщение","Статус"]
["2018-04-28T09:04:17","Проверка доступных обновлений...","Информация"]
["2018-04-28T09:04:18","Нет доступных обновлений для отчёта с кодом JKH.OPEN.INFO.QUARTER.GVS.6!","Информация"]
["2018-04-28T09:04:25","Проверка доступных обновлений...","Информация"]
["2018-04-28T09:04:26","Нет доступных обновлений для отчёта с кодом JKH.OPEN.INFO.QUARTER.GVS.6!","Информация"]
["2018-04-28T09:08:29","Проверка доступных обновлений...","Информация"]
["2018-04-28T09:08:30","Нет доступных обновлений для отчёта с кодом JKH.OPEN.INFO.QUARTER.GVS.6!","Информация"]
["2018-06-19T15:28:33","Проверка доступных обновлений...","Информация"]
["2018-06-19T15:28:34","Нет доступных обновлений для отчёта с кодом JKH.OPEN.INFO.QUARTER.GVS.6!","Информация"]

{"sheet":"Титульный","index":3,"n_rows":41,"n_cols":6,"rows_kept":41,"merged":[[4,4,4,5]]}
[{"$nulls":5},27545553]
[]
[]
[{"$nulls":5},{"$f":"version","v":"Версия 1.1.1"}]
[{"$nulls":4},"Информация о наличии (отсутствии) технической возможности подключения к централизованной системе горячего водоснабжения, а также о регистрации и ходе реализации заявок о подключении к централизованной системе горячего водоснабжения"]
[]
[{"$nulls":4},"Субъект РФ","Белгородская область"]
[]
[{"$nulls":4},"Публикация2","На сайте регулирующего органа"]
[]
[{"$nulls":4},"По решению организации информация раскрыта на ее официальном сайте в сети Интернет?","да"]
[]
[{"$nulls":4},"Тип отчета","Первичное раскрытие информации"]
[{"$nulls":4},"Дата внесения изменений в информацию, подлежащую раскрытию"]
[]
[{"$nulls":4},"Применяется дифференциация тарифа по централизованным системам теплоснабжения?"]
[{"$nulls":4},"Информация по скольким централизованным системам теплоснабжения будет заполнена в шаблоне?"]
[]
[{"$nulls":5},"Отчетный период"]
[null,null,2018,null,"Год",2018]
[null,null,"I квартал",null,"Квартал","I квартал"]
[]
[{"$nulls":4},"Является ли данное юридическое лицо подразделением (филиалом) другой организации"]
[]
[]
[{"$nulls":4},"Наименование организации (филиала)","ООО \"Белрегионтеплоэнерго\""]
[]
[]
[{"$nulls":4},"Наименование головной организации"]
[{"$nulls":4},"ИНН","3123088748"]
[{"$nulls":4},"КПП","312101001"]
[{"$nulls":4},"Вид деятельности"]
[]
[{"$nulls":4},"Почтовый адрес регулируемой организации","309070 г.Строитель ул.2 Заводская д.3"]
[{"$nulls":4},"Фамилия, имя, отчество руководителя","Коломацкий И.М."]
[]
[{"$nulls":5},"Ответственный за составление формы"]
[{"$nulls":4},"Фамилия, имя, отчество","Козлитина А.А."]
[{"$nulls":4},"Должность","Главный экономист"]
[{"$nulls":4},"(код) номер телефона","8(47244)52996"]
[{"$nulls":4},"e-mail","po_brte@mail.ru"]

{"sheet":"Территории","index":4,"n_rows":22,"n_cols":17,"rows_kept":22,"merged":[[3,3,3,7],[4,3,4,7],[6,3,6,4],[6,5,6,6],[8,3,8,4],[8,5,8,7],[8,8,8,11],[9,5,9,6],[9,8,9,9],[10,5,10,6],[10,8,10,9],[12,3,20,3],[12,4,20,4],[12,5,19,5],[12,6,19,6],[12,7,19,7]]}
[]
[]
[]
[{"$nulls":3},"Перечень муниципальных районов и муниципальных образований (территорий оказания услуг)"]
[{"$nulls":3},{"$f":"IF(org=0,\"Не определено\",org)","v":"ООО \"Белрегионтеплоэнерго\""}]
[]
[{"$nulls":5},"да"]
[]
[{"$nulls":3},"Территория оказания услуг",null,"Муниципальный район",null,null,"Муниципальное образование"]
[{"$nulls":3},"№ п/п","Наименование","№ п/п",null,"Наименование","№ п/п",null,"Наименование","ОКТМО"]
[{"$nulls":3},"1","2","3",null,"4","5",null,"6","7"]
[{"$nulls":3},0,null,"",null,null,""]
[null,"auto",null,1,"Яковлевский муниципальный район, город Строитель (14658101);\nЯковлевский муниципальный район, поселок Яковлево (14658170);\nЯковлевский муниципальный район, Дмитриевское (14658420);\nЯковлевский муниципальный район, Завидовское (14658428);\nЯковлевский муниципальный район, поселок Томаровка (14658160);\nЯковлевский муниципальный район, Алексеевское (14658404);\nЯковлевский муниципальный район, Гостищевское (14658416);","",1,"Яковлевский муниципальный район","","1","город Строитель","14658101",{"$nulls":4},"Яковлевский муниципальный район, город Строитель (14658101);\nЯковлевский муниципальный район, поселок Яковлево (14658170);\nЯковлевский муниципальный район, Дмитриевское (14658420);\nЯковлевский муниципальный район, Завидовское (14658428);\nЯковлевский муниципальный район, поселок Томаровка (14658160);\nЯковлевский муниципальный район, Алексеевское (14658404);\nЯковлевский муниципальный район, Гостищевское (14658416);"]
[null,"auto",{"$nulls":6},"",2,"поселок Яковлево","14658170"]
[null,"auto",{"$nulls":6},"",3,"Дмитриевское","14658420"]
[null,"auto",{"$nulls":6},"",4,"Завидовское","14658428"]
[null,"auto",{"$nulls":6},"",5,"поселок Томаровка","14658160"]
[null,"auto",{"$nulls":6},"",6,"Алексеевское","14658404"]
[null,"auto",{"$nulls":6},"",7,"Гостищевское","14658416"]
[{"$nulls":8},"",null,""]
[{"$nulls":5},"",null,"",""]
[null,"man",null,null,"","",null,null,"",{"$nulls":7},"Добавить территорию оказания услуг"]

{"sheet":"Дифференциация","index":5,"n_rows":26,"n_cols":26,"rows_kept":26,"merged":[[3,3,3,8],[4,3,4,8],[5,0,6,5],[7,1,7,3],[7,4,7,5],[8,1,8,3],[8,4,8,5],[9,1,9,3],[9,4,9,5],[10,1,10,3],[10,4,10,5],[11,1,11,3],[12,1,12,3],[13,1,13,3],[17,0,18,0],[17,3,17,4],[17,5,17,8],[17,9,17,12],[18,6,18,7],[18,10,18,11],[19,6,19,7],[19,10,19,11],[21,3,23,3],[21,4,23,4],[21,5,23,5],[21,6,22,6],[21,7,22,7],[21,8,22,8],[21,9,22,9],[24,2,25,2]]}
[]
[]
[]
[{"$nulls":3},"Информация о наличии (отсутствии) технической возможности подключения к централизованной системе горячего водоснабжения, а также о регистрации и ходе реализации заявок о подключении к централизованной системе горячего водоснабжения"]
[{"$nulls":3},{"$f":"IF(org=0,\"Не определено\",org)","v":"ООО \"Белрегионтеплоэнерго\""}]
{"$rows_empty":12}
[{"$nulls":3},"Вид деятельности",null,"Дифференциация по территориям оказания услуг",{"$nulls":3},"Дифференциация по централизованным системам горячего водоснабжения"]
[{"$nulls":3},"№ п/п","Наименование","да/нет","№ п/п",null,"Наименование","да/нет","№ п/п",null,"Наименование"]
[{"$nulls":3},"1","2","3","4",null,"5","6","7",null,"8"]
[]
[{"$nulls":3},"1","Горячее водоснабжение, в том числе приготовление воды на нужды горячего водоснабжения","нет",null,1,null,"нет","","1","",{"$nulls":10},64237232,"a",1705000]
[{"$nulls":10},"",null,""]
[{"$nulls":8},"",null,""]
[{"$nulls":4},"",{"$nulls":5},""]
[{"$nulls":10},""]

{"sheet":"Доступ к товарам и услугам","index":6,"n_rows":15,"n_cols":10,"rows_kept":15,"merged":[[3,3,3,9],[4,3,4,9],[6,3,7,3],[6,4,7,4],[6,5,7,5],[6,6,7,6],[6,7,7,7],[6,8,6,9],[12,3,14,3],[12,4,14,4],[12,5,14,5],[12,6,13,6],[12,7,13,7],[12,8,12,9]]}
[{"$nulls":9},4]
[]
[]
[{"$nulls":3},"Информация о наличии (отсутствии) технической возможности подключения к централизованной системе горячего водоснабжения, а также о регистрации и ходе реализации заявок о подключении к централизованной системе горячего водоснабжения"]
[{"$nulls":3},{"$f":"IF(org=0,\"Не определено\",org)","v":"ООО \"Белрегионтеплоэнерго\""}]
[]
[{"$nulls":3},"№ п/п","Информация, подлежащая раскрытию","Единица измерения","О","№ п/п","Вид деятельности:\r\n  - Горячее водоснабжение, в том числе приготовление воды на нужды горячего водоснабжения\r\n\r\nТерритория оказания услуг:\r\n  - без дифференциации\r\n\r\nЦентрализованная система горячего водоснабжения:\r\n  - без дифференциации"]
[{"$nulls":8},"Показатель","Комментарий"]
[{"$nulls":3},"1","2","3",null,null,{"$f":"J1&\".1\"","v":"4.1"},{"$f":"J1&\".2\"","v":"4.2"}]
[{"$nulls":3},1,"Количество поданных заявок","шт",null,null,0]
[{"$nulls":3},2,"Количество исполненных заявок","шт",null,null,0]
[{"$nulls":3},3,"Количество заявок с решением об отказе в подключении","шт",null,null,0]
[{"$nulls":3},4,"Резерв мощности централизованной системы горячего водоснабжения в течение квартала","тыс.куб.м/сутки",null,1,"Закрытая система ГВС"]
[{"$nulls":8},0.67]
[{"$nulls":8},"Добавить централизованную систему горячего водоснабжения"]

{"sheet":"Публикация в других источниках","index":7,"n_rows":12,"n_cols":8,"rows_kept":12,"merged":[[4,3,4,4],[5,3,5,4],[7,3,8,3],[7,4,8,4],[7,5,7,7]]}
[]
[]
[]
[]
[{"$nulls":3},"Публикация в других источниках\n(публикация информации по решению организации на ее официальном сайте в сети \"Интернет\")"]
[{"$nulls":3},{"$f":"IF(org=0,\"Не определено\",org)","v":"ООО \"Белрегионтеплоэнерго\""}]
[]
[{"$nulls":3},"№ п/п","Описание опубликованной информации","Официальный сайт организации в сети \"Интернет\""]
[{"$nulls":5},"Дата\nразмещения информации","Адрес официальной страницы сайта\nв сети \"Интернет\", на котором размещена информация","Ссылка на снимок экрана\nофициальной страницы сайта в сети \"Интернет\", на котором размещена информация"]
[{"$nulls":3},"1","2","3","4","5"]
[{"$nulls":3},1,"Информация о наличии (отсутствии) технической возможности подключения к централизованной системе горячего водоснабжения, а также о регистрации и ходе реализации заявок о подключении к централизованной системе горячего водоснабжения (пункт 63 Постановления Правительства РФ от 17.01.2013 N 6 \"О стандартах раскрытия информации в сфере водоснабжения и водоотведения\")","28.04.2018","www.brte31.ru","https://tariff.eias.ru/disclo/get_file?p_guid=051751f5-dae3-462b-ac02-8aa033559551"]
[{"$nulls":4},"Добавить опубликованную информацию"]

{"sheet":"Сведения об изменении","index":8,"n_rows":14,"n_cols":5,"rows_kept":14,"hidden":true,"merged":[[6,3,6,4],[7,3,7,4]]}
[]
[]
[]
[]
[]
[]
[{"$nulls":3},"Сведения об изменениях в первоначально опубликованной информации"]
[{"$nulls":3},{"$f":"IF(org=0,\"Не определено\",org)","v":"ООО \"Белрегионтеплоэнерго\""}]
[]
[{"$nulls":3},"№ п/п","Сведения"]
[{"$nulls":3},"1","2"]
[{"$nulls":3},0]
[{"$nulls":3},1]
[{"$nulls":4},"Добавить строку"]

{"sheet":"Комментарии","index":9,"n_rows":13,"n_cols":5,"rows_kept":13,"merged":[[6,3,6,4],[7,3,7,4]]}
[]
[]
[]
[]
[]
[]
[{"$nulls":3},"Комментарии"]
[{"$nulls":3},{"$f":"IF(org=0,\"Не определено\",org)","v":"ООО \"Белрегионтеплоэнерго\""}]
[]
[{"$nulls":3},"№ п/п","Комментарий"]
[{"$nulls":3},"1","2"]
[{"$nulls":3},0]
[{"$nulls":4},"Добавить"]

{"sheet":"Проверка","index":10,"n_rows":4,"n_cols":5,"rows_kept":4,"merged":[[1,1,1,4]]}
[]
[null,"Результат проверки"]
[]
[null,"Ссылка1","Ссылка2","Причина","Статус"]

{"sheet":"AllSheetsInThisWorkbook","index":11,"n_rows":39,"n_cols":2,"rows_kept":39,"hidden":true}
["Расчетные листы","Скрытые листы"]
["Инструкция","modReestr"]
["Лог обновления","AllSheetsInThisWorkbook"]
["Титульный","TEHSHEET"]
["Территории","modCheckCyan"]
["Дифференциация","modSettings"]
["Доступ к товарам и услугам","modfrmSetForPrint"]
["Публикация в других источниках","modInfo"]
["Сведения об изменении","et_union_hor"]
["Комментарии","et_union_vert"]
["Проверка","modList00"]
[null,"modList01"]
[null,"modList02"]
[null,"modList03"]
[null,"modList07"]
[null,"modList09"]
[null,"modHTTP"]
[null,"modfrmRegion"]
[null,"MR_LIST"]
[null,"REESTR_VT"]
[null,"REESTR_VED"]
[null,"modfrmReestrObj"]
[null,"DataOrg"]
[null,"modProv"]
[null,"modfrmReestr"]
[null,"modUpdTemplMain"]
[null,"REESTR_ORG"]
[null,"modClassifierValidate"]
[null,"modHyp"]
[null,"modfrmDateChoose"]
[null,"modComm"]
[null,"modThisWorkbook"]
[null,"REESTR_MO"]
[null,"modfrmReestrMR"]
[null,"modServiceModule"]
[null,"modfrmCheckUpdates"]
[null,"REESTR_DS"]
[null,"REESTR_CHS"]
[null,"REESTR_LINK"]

{"sheet":"TEHSHEET","index":12,"n_rows":43,"n_cols":14,"rows_kept":43,"hidden":true}
["NSRF",null,"year_list","logical","Месяц\n(MONTH)","Квартал\n(QUARTER)","Месяц\n(kind_of_publication)","Единица измерения объема оказываемых услуг\n/kind_of_unit/","Вид тарифа\n/list_of_tariff/","mr_id","версия шаблона\n (DocProp_Version)","0.1","Тип отчета\ndata_type","Print_form"]
["Алтайский край",null,2013,"да","январь","I квартал","На официальном сайте организации","тыс.куб.м/сутки",null,52,"код шаблона\n(DocProp_TemplateCode)","JKH.OPEN.INFO.QUARTER.WARM.570","Первичное раскрытие информации","Форма 1.1"]
["Амурская область",null,2014,"нет","февраль","II квартал","На сайте регулирующего органа","Гкал/час","Без дифференциации","sys_id","сфера\n(TSphere)","ТС","Корректировка ранее раскрытой информации","Форма 1.2"]
["Астраханская область",null,2015,null,"март","III квартал",null,"тыс.куб.м/час",null,104,"сфера(латиница)\n(TSphere_trans)","WARM","Изменения в раскрытой ранее информации","Форма 1.3"]
["Белгородская область",null,2016,null,"апрель","IV квартал",{"$nulls":4},"сфера расширено\n(TSphere_full)",null,null,"Форма 1.4"]
["Волгоградская область",null,2017,null,"май",{"$nulls":8},"Форма 1.5"]
["Еврейская автономная область",{"$nulls":3},"июнь",{"$nulls":8},"Форма 1.6"]
["Кабардино-Балкарская республика",{"$nulls":3},"июль",{"$nulls":5},"true",null,null,"Форма 1.7"]
["Калининградская область",{"$nulls":3},"август",{"$nulls":8},"Форма 1.8"]
["Калужская область",{"$nulls":3},"сентябрь",{"$nulls":8},"Форма 1.9"]
["Кемеровская область",{"$nulls":3},"октябрь",{"$nulls":5},"https://appsrv.regportal-tariff.ru/procwsxls/",null,null,"Форма 1.10"]
["Костромская область",{"$nulls":3},"ноябрь",{"$nulls":8},"Форма 1.11"]
["Краснодарский край",{"$nulls":3},"декабрь",{"$nulls":8},"Форма 1.12"]
["Красноярский край",{"$nulls":12},"Форма 2.1"]
["Ленинградская область",{"$nulls":12},"Форма 2.2"]
["Нижегородская область",{"$nulls":5},"Текущая дата",{"$nulls":6},"Форма 2.3"]
["Новосибирская область",null,"Организация",{"$f":"IF(f_year = \"\",\"\", IF(LEN(f_quart)=0,\"\",IF(f_quart=\"I квартал\", \"01.01.\"&f_year,IF(f_quart=\"II квартал\",\"01.04.\"&f_year,(IF(f_quart=\"III квартал\", \"01.07.\"&f_year,\"01.10.\"&f_year)))) ))","v":"01.01.2018"},{"$f":"IF(f_year = \"\",\"\", IF(LEN(f_quart)=0,\"\",IF(f_quart=\"I квартал\", \"31.03.\"& f_year,IF(f_quart=\"II квартал\",\"30.06.\"& f_year,(IF(f_quart=\"III квартал\", \"30.09.\"& f_year,\"31.12.\"& f_year)))) ))","v":"31.03.2018"},null,"19.06.2018 20:28:35",{"$nulls":6},"Форма 2.4"]
["Омская область",{"$nulls":12},"Форма 2.5"]
["Оренбургская область",{"$nulls":5},"Признак изменения данных на листе Доступ к товарам и услугам",{"$nulls":6},"Форма 2.6"]
["Пермский край",null,"Виды деятельности",{"$nulls":3},true,{"$nulls":6},"Форма 2.7"]
["Республика Башкортостан",{"$nulls":12},"Форма 2.8"]
["Республика Бурятия",{"$nulls":12},"Форма 2.9"]
["Республика Дагестан",{"$nulls":12},"Форма 2.10"]
["Республика Карелия",{"$nulls":12},"Форма 2.11"]
["Республика Крым",{"$nulls":12},"Форма 2.12"]
["Республика Татарстан",{"$nulls":12},"Форма 2.13"]
["Рязанская область",{"$nulls":12},"Форма 2.14"]
["Самарская область",{"$nulls":12},"Форма 3.1"]
["Ставропольский край",{"$nulls":12},"Форма 3.2"]
["Тверская область",{"$nulls":12},"Форма 3.3"]
["Томская область",{"$nulls":12},"Форма 3.4"]
["Тульская область",{"$nulls":12},"Форма 3.5"]
["Тюменская область",{"$nulls":12},"Форма 3.6"]
["Удмуртская республика",{"$nulls":12},"Форма 3.7"]
["Ульяновская область",{"$nulls":12},"Форма 3.8"]
["Хабаровский край",{"$nulls":12},"Форма 3.9"]
["Ханты-Мансийский автономный округ",{"$nulls":12},"Форма 3.10"]
["Чувашская республика",{"$nulls":12},"Форма 3.11"]
["г.Севастополь",{"$nulls":12},"Форма 3.12"]
[{"$nulls":13},"Форма 4.1"]
[{"$nulls":13},"Форма 4.2"]
[{"$nulls":13},"Форма 4.3"]
[{"$nulls":13},"Форма 4.4"]

{"sheet":"modCheckCyan","index":13,"n_rows":32,"n_cols":1,"rows_kept":32,"hidden":true}
[]
[{"$f":"IF('Сведения об изменении'!$E$13=\"\",1,0)","v":1}]
[{"$f":"IF('Доступ к товарам и услугам'!$I$11=\"\",1,0)","v":0}]
[{"$f":"IF('Доступ к товарам и услугам'!$I$11=\"Введите наименование централизованной системы горячего водоснабжения\",1,0)","v":0}]
[{"$f":"IF('Доступ к товарам и услугам'!$I$12=\"\",1,0)","v":0}]
[{"$f":"IF('Доступ к товарам и услугам'!$I$12=\"Введите наименование централизованной системы горячего водоснабжения\",1,0)","v":0}]
[{"$f":"IF('Доступ к товарам и услугам'!$F$13=\"\",1,0)","v":0}]
[{"$f":"IF('Доступ к товарам и услугам'!$I$10=\"\",1,0)","v":0}]
[{"$f":"IF('Доступ к товарам и услугам'!$I$10=\"Введите наименование централизованной системы горячего водоснабжения\",1,0)","v":0}]
[{"$f":"IF(Территории!$E$13=\"\",1,0)","v":0}]
[{"$f":"IF(Территории!$H$13=\"\",1,0)","v":0}]
[{"$f":"IF(Территории!$K$13=\"\",1,0)","v":0}]
[{"$f":"IF(Территории!$K$14=\"\",1,0)","v":0}]
[{"$f":"IF(Территории!$K$15=\"\",1,0)","v":0}]
[{"$f":"IF(Территории!$K$16=\"\",1,0)","v":0}]
[{"$f":"IF(Территории!$K$17=\"\",1,0)","v":0}]
[{"$f":"IF(Территории!$K$18=\"\",1,0)","v":0}]
[{"$f":"IF(Территории!$K$19=\"\",1,0)","v":0}]
[{"$f":"IF(Дифференциация!$E$22=\"\",1,0)","v":0}]
[{"$f":"IF(Дифференциация!$F$22=\"\",1,0)","v":0}]
[{"$f":"IF(Дифференциация!$J$22=\"\",1,0)","v":0}]
[{"$f":"IF('Доступ к товарам и услугам'!$I$14=\"\",1,0)","v":0}]
[{"$f":"IF('Доступ к товарам и услугам'!$I$14=\"Введите наименование централизованной системы горячего водоснабжения\",1,0)","v":0}]
[{"$f":"IF('Доступ к товарам и услугам'!$I$13=\"\",1,0)","v":0}]
[{"$f":"IF('Доступ к товарам и услугам'!$I$13=\"Введите наименование централизованной системы горячего водоснабжения\",1,0)","v":0}]
[{"$f":"IF('Доступ к товарам и услугам'!$I$14=\"\",1,0)","v":0}]
[{"$f":"IF('Доступ к товарам и услугам'!$I$14=\"Введите наименование централизованной системы горячего водоснабжения\",1,0)","v":0}]
[{"$f":"IF('Доступ к товарам и услугам'!$I$13=\"\",1,0)","v":0}]
[{"$f":"IF('Доступ к товарам и услугам'!$I$13=\"Введите наименование централизованной системы горячего водоснабжения\",1,0)","v":0}]
[{"$f":"IF('Публикация в других источниках'!$F$11=\"\",1,0)","v":0}]
[{"$f":"IF('Публикация в других источниках'!$G$11=\"\",1,0)","v":0}]
[{"$f":"IF('Публикация в других источниках'!$H$11=\"\",1,0)","v":0}]

{"sheet":"modSettings","index":14,"n_rows":14,"n_cols":3,"rows_kept":14,"hidden":true}
["Версия шаблона","VERS_TEMP","BASE"]
["Настройка справочника наименований тарифов (Y / N)","FLAG_NAME_OF_TARIFF","NN"]
["Функционал уведомлений о раскрытии (Y / N)","FLAG_OPEN_UVED","YY"]
["Функционал отслеживания типа отчета (Y / N)","FLAG_TYPE_OF_REP","YY"]
["Подрезание МР/МО по сфере оказания услуг (Y / N)","FLAG_MR_MO","YY"]
["Печать шаблона (Y / N)","FLAG_PRINT_TEMP","YY"]
["Печатные формы (Y / N)","FLAG_PRINT_FORM","YY"]
["Размещение в шаблоне ссылок на материалы Хранилища (Y / N)","FLAG_LINK_DOC","YY"]
["Отметка об отсутствии Интернета в МР/МО (Y / N)","FLAG_INTERNET_MR_MO","NN"]
["Отметка о сдаче бух баланса (Y / N)","FLAG_BUH_BAL","NN"]
["Отметка о доле выручки (Y / N)","FLAG_PART_OF_REV","NN"]
["Отображение данных об организации (Y / N)","FLAG_DATA_ORG","YY"]
["Флаг забора данных из шаблонов группы PRICE (Y / N)","FLAG_AUTOFILL_PRICE","NN"]
["Наличие ссылок на снимки экрана страницы сайта в сети Интернет, на которой размещена информация (Y / N)","FLAG_REF","YY"]

{"sheet":"modfrmSetForPrint","index":15,"n_rows":0,"n_cols":0,"rows_kept":0,"hidden":true}

{"sheet":"modInfo","index":16,"n_rows":25,"n_cols":2,"rows_kept":25,"hidden":true,"merged":[[10,3,10,10],[11,3,11,10],[12,3,12,10],[13,3,13,10],[14,3,14,10],[15,3,15,10],[16,3,16,10]]}
[null,"Титульный"]
[7,"Шаблон предназначен для отправки в субъект РФ, на территории которого осуществляется оказание услуг"]
[1,"Шаблон предназначен для предоставления в регулирующий орган следующей информации:\n1) о наличии (отсутствии) технической возможности подключения к централизованной системе горячего водоснабжения, а также о регистрации и ходе реализации заявок о подключении к централизованной системе горячего водоснабжения согласно пункту 63 Постановления Правительства РФ от 17.01.2013 N 6;\n2) cведения о раскрытии соответствующей информации на официальном сайте организации в сети Интернет, подлежащие предоставлению в орган исполнительной власти субъекта Российской Федерации в области государственного регулирования цен (тарифов) согласно пункту 10 Постановления Правительства РФ от 17.01.2013 N6;\n3) cведения об изменении, подлежащие публикации, на основании требований пункта 11 Постановления Правительства РФ от 17.01.2013 N 6."]
[2,"Информация, подлежит обязательному опубликованию на официальном сайте в сети \"Интернет\" органа исполнительной власти субъекта Российской Федерации в области государственного регулирования цен (тарифов), и (или) на официальном сайте органа местного самоуправления поселения или городского округа в случае их наделения в соответствии с законом субъекта Российской Федерации полномочиями по государственному регулированию цен (тарифов), согласно пункту 3а) Постановления Правительства РФ от 05.07.2013 №570."]
[3,"Если информация публикуется только на официальном сайте в информационно-телекоммуникационной сети \"Интернет\" (далее – сети Интернет) органа исполнительной власти субъекта Российской Федерации в области государственного регулирования цен (тарифов) или на официальном сайте органа местного самоуправления поселения или городского округа в случае их наделения в соответствии с законом субъекта Российской Федерации полномочиями по государственному регулированию цен (тарифов), в поле \"По решению организации информация раскрыта на ее официальном сайте в сети Интернет?\" необходимо указать \"Нет\".\n\nЕсли же информация дополнительно публикуется на официальном сайте организации в сети Интернет, в поле \"По решению организации информация раскрыта на ее официальном сайте в сети Интернет?\" необходимо указать \"Да\"."]
[4,"По умолчанию установлено значение «Первичное раскрытие информации». Это означает, что информация раскрывается в соответствии с установленными сроком и периодичностью.\n\nВ случае, если в раскрываемой информации произошли изменения, сведения об этих изменениях подлежат опубликованию в шаблоне с типом отчета \"Изменения в раскрытой ранее информации\".\n\nВ случае, если в уже отправленном шаблоне обнаружена ошибка, исправленный шаблон необходимо отправить с типом отчета «Корректировка ранее раскрытой информации»."]
[5,"В случае, если регулируемыми организациями оказываются услуги по нескольким технологически не связанным между собой централизованным системам горячего водоснабжения и если в отношении указанных систем устанавливаются различные тарифы в сфере горячего водоснабжения, то информация раскрывается отдельно по каждой централизованной системе горячего водоснабжения."]
[6]
[null,"Публикация на прочих ресурсах"]
[null,"Вводите адрес сайта, не нарушая цвет ячейки /если копируете гиперссылку из браузера, то выполните двойной щелчок по ячейке и только после этого можете вставить скопированный элемент/\nДля редактирования указанной гиперссылки или перехода по ней выполните двойной щелчок левой клавиши мыши по ячейке"]
[null,{"$f":"IF(OR(FLAG_LINK_DOC=\"Y\",FLAG_LINK_DOC=\"NY\",FLAG_LINK_DOC=\"YY\"),\"Указывается ссылка на загруженный в Хранилище ЕИАС снимок экрана официальной страницы сайта, на котором размещена информация\",\"Указывается ссылка на загруженный в Интернет-ресурс снимок экрана официальной страницы сайта, на котором размещена информация\") & \". Для редактирования указанной гиперссылки или перехода по ней выполните двойной щелчок левой клавиши мыши по ячейке\"","v":"Указывается ссылка на загруженный в Хранилище ЕИАС снимок экрана официальной страницы сайта, на котором размещена информация. Для редактирования указанной гиперссылки или перехода по ней выполните двойной щелчок левой клавиши мыши по ячейке"}]
[null,"Указывается дата, по состоянию на которую информация стала доступной в сети Интернет для неограниченного круга лиц\nВыберите значение из календаря (иконка справа от выбранной ячейки), либо введите дату непосредственно в ячейку в формате - 'ДД.ММ.ГГГГ'"]
[null,"Территории"]
[1,"Наименование территории оказания услуг для целей идентификации"]
[2,"Муниципальные районы и муниципальные образования, на территории которых осуществляется оказание услуг"]
[null,"Дифференциация"]
[1,"В случае, если регулируемая организация осуществляет несколько видов деятельности, информация о которых подлежит раскрытию, информация по каждому виду деятельности раскрывается отдельно."]
[2,"Поле заполняется выбором значений из списка. Если значений для выбора нет - убедитесь, что лист \"Территории\" заполнен."]
[3,"Условное наименование централизованной системы горячего водоснабжения для целей идентификации."]
[4,"В случае, если регулируемыми организациями оказываются услуги по нескольким технологически не связанным между собой  централизованным системам горячего водоснабжения и если в отношении указанных централизованных систем устанавливаются различные тарифы в сфере горячего водоснабжения, то информация раскрывается отдельно по каждой централизованной системе горячего водоснабжения."]
[null,"Доступ к товарам и услугам"]
[1,"При использовании регулируемой организацией нескольких централизованных систем горячего водоснабжения информация о резерве мощности таких централизованных систем публикуется в отношении каждой централизованной системы горячего водоснабжения."]
[null,"Сведения об изменении"]
[1,"Лист заполняется в случае, если на Титульном листе в поле \"Тип отчета\" выбрано значение «Изменения в раскрытой ранее информации»."]
[null,"Нет доступных обновлений, версия отчёта актуальна"]

{"sheet":"et_union_hor","index":17,"n_rows":46,"n_cols":26,"rows_kept":46,"hidden":true,"merged":[[18,3,20,3],[18,4,20,4],[18,5,19,5],[18,6,19,6],[18,7,19,7],[24,5,25,5],[24,6,25,6],[24,7,25,7],[34,3,36,3],[34,4,36,4],[34,5,36,5],[34,6,35,6],[34,7,35,7],[34,8,35,8],[34,9,35,9],[40,6,41,6],[40,7,41,7],[40,8,41,8],[40,9,41,9]]}
[]
[]
["et_List02"]
[]
[]
[]
["et_Comm"]
[]
[]
[]
["et_List03"]
[]
[]
[]
[]
[]
["et_List09_0"]
[]
[null,"auto",null,1,null,null,1,null,null,"1"]
[{"$nulls":10},"Добавить МО"]
[{"$nulls":7},"Добавить МР"]
[]
["et_List09_1"]
[]
[null,"auto",{"$nulls":4},1,null,null,1]
[{"$nulls":10},"Добавить МО"]
[]
["et_List09_2"]
[]
[null,"auto",{"$nulls":7},1]
[]
[]
["et_List07_1"]
[]
[{"$nulls":3},"1",null,"нет",null,1,null,"нет",null,"1",{"$nulls":12},"a",1705000]
[{"$nulls":12},"Добавить централизованную систему горячего водоснабжения"]
[{"$nulls":8},"Добавить описание территории оказания услуг"]
[]
["et_List07_4"]
[]
[{"$nulls":7},1,"","нет",null,"1",{"$nulls":12},"a",1705000]
[{"$nulls":12},"Добавить централизованную систему горячего водоснабжения"]
[]
["et_List07_5"]
[]
[{"$nulls":11},"1","",{"$nulls":11},"a",1705000]

{"sheet":"et_union_vert","index":18,"n_rows":0,"n_cols":0,"rows_kept":0,"hidden":true}

{"sheet":"modList00","index":19,"n_rows":0,"n_cols":0,"rows_kept":0,"hidden":true}

{"sheet":"modList01","index":20,"n_rows":14,"n_cols":10,"rows_kept":14,"hidden":true,"merged":[[3,3,3,9],[4,3,4,9],[6,3,7,3],[6,4,7,4],[6,5,7,5],[6,6,7,6],[6,7,7,7],[6,8,6,9],[12,3,14,3],[12,4,14,4],[12,5,14,5],[12,6,13,6],[12,7,13,7],[12,8,12,9]]}
{"$rows_empty":7}
[{"$nulls":8},"Показатель","Комментарий"]
[{"$nulls":3},"1","2","3",null,null,{"$f":"J1&\".1\"","v":".1"},{"$f":"J1&\".2\"","v":".2"}]
[]
[]
[]
[{"$nulls":8},"Введите наименование централизованной системы горячего водоснабжения"]
[{"$nulls":8},""]

{"sheet":"modList02","index":21,"n_rows":0,"n_cols":0,"rows_kept":0,"hidden":true,"merged":[[4,3,4,4],[5,3,5,4],[7,3,8,3],[7,4,8,4],[7,5,7,7]]}

{"sheet":"modList03","index":22,"n_rows":0,"n_cols":0,"rows_kept":0,"hidden":true,"merged":[[6,3,6,4],[7,3,7,4]]}

{"sheet":"modList07","index":23,"n_rows":22,"n_cols":26,"rows_kept":22,"hidden":true,"merged":[[3,3,3,8],[4,3,4,8],[5,0,6,5],[7,1,7,3],[7,4,7,5],[8,1,8,3],[8,4,8,5],[9,1,9,3],[9,4,9,5],[10,1,10,3],[10,4,10,5],[11,1,11,3],[12,1,12,3],[13,1,13,3],[17,0,18,0],[17,3,17,4],[17,5,17,8],[17,9,17,12],[18,6,18,7],[18,10,18,11],[19,6,19,7],[19,10,19,11],[21,3,23,3],[21,4,23,4],[21,5,23,5],[21,6,22,6],[21,7,22,7],[21,8,22,8],[21,9,22,9],[24,2,25,2]]}
{"$rows_empty":21}
[{"$nulls":23},64279412,"a",1705000]

{"sheet":"modList09","index":24,"n_rows":22,"n_cols":9,"rows_kept":22,"hidden":true,"merged":[[3,3,3,7],[4,3,4,7],[6,3,6,4],[6,5,6,6],[8,3,8,4],[8,5,8,7],[8,8,8,11],[9,5,9,6],[9,8,9,9],[10,5,10,6],[10,8,10,9],[12,3,20,3],[12,4,20,4],[12,5,19,5],[12,6,19,6],[12,7,19,7]]}
{"$rows_empty":11}
[{"$nulls":3},0]
[null,"man"]
[null,"auto",{"$nulls":6},"О"]
[null,"auto",{"$nulls":6},"О"]
[null,"auto",{"$nulls":6},"О"]
[null,"auto",{"$nulls":6},"О"]
[null,"auto",{"$nulls":6},"О"]
[null,"auto",{"$nulls":6},"О"]
[]
[]
[null,"man"]

{"sheet":"modHTTP","index":25,"n_rows":0,"n_cols":0,"rows_kept":0,"hidden":true}

{"sheet":"modfrmRegion","index":26,"n_rows":0,"n_cols":0,"rows_kept":0,"hidden":true}

{"sheet":"MR_LIST","index":27,"n_rows":0,"n_cols":0,"rows_kept":0,"hidden":true}

{"sheet":"REESTR_VT","index":28,"n_rows":0,"n_cols":0,"rows_kept":0,"hidden":true}

{"sheet":"REESTR_VED","index":29,"n_rows":4,"n_cols":2,"rows_kept":4,"hidden":true}
["ID_TARIFF_NAME","VED_NAME"]
[64237232,"Горячее водоснабжение, в том числе приготовление воды на нужды горячего водоснабжения"]
[64237233,"Горячее водоснабжение, в том числе транспортировка горячей воды"]
[64237234,"Подключение (технологическое присоединение) к централизованной системе горячего водоснабжения"]

{"sheet":"modfrmReestrObj","index":30,"n_rows":0,"n_cols":0,"rows_kept":0,"hidden":true}

{"sheet":"DataOrg","index":31,"n_rows":0,"n_cols":0,"rows_kept":0,"hidden":true}

{"sheet":"modProv","index":32,"n_rows":0,"n_cols":0,"rows_kept":0,"hidden":true}

{"sheet":"modfrmReestr","index":33,"n_rows":0,"n_cols":0,"rows_kept":0,"hidden":true}

{"sheet":"modUpdTemplMain","index":34,"n_rows":0,"n_cols":0,"rows_kept":0,"hidden":true}

{"sheet":"REESTR_ORG","index":35,"n_rows":33,"n_cols":10,"rows_kept":33,"hidden":true}
["№","REGION_ID","REGION_NAME","RST_ORG_ID","ORG_NAME","INN_NAME","KPP_NAME","ORG_START_DATE","ORG_END_DATE"]
[1,"2587","Белгородская область","26526333","АО  «Белгородская теплосетевая компания»","3123169468","312350001","06-12-2007 00:00:00",null,"HOT_VS"]
[2,"2587","Белгородская область","31046156","АО \"Белгородская региональная теплосетевая компания\"","3102041957","310201001","01-02-2018 00:00:00",null,"HOT_VS"]
[3,"2587","Белгородская область","26838066","АО \"РЭУ\"","7714783092","774501001",null,null,"HOT_VS"]
[4,"2587","Белгородская область","26821504","Воронежский территориальный участок Юго-Восточной дирекции по тепловодоснабжению - структурное подразделение Центральной дирекции по тепловодоснабжению - филиала ОАО \"РЖД\"","7708503727","366145016","09-12-2011 00:00:00",null,"HOT_VS"]
[5,"2587","Белгородская область","26319224","ЗАО \"Строительный центр\"","3128032361","312801001",null,null,"HOT_VS"]
[6,"2587","Белгородская область","26540547","МУП \"Алексеевская сервисно-сбытовая компания\"","3122507890","312201001",null,null,"HOT_VS"]
[7,"2587","Белгородская область","26540571","МУП \"Алексеевская теплосетевая компания\"","3122507499","312201001","01-05-2009 00:00:00",null,"HOT_VS"]
[8,"2587","Белгородская область","26540602","МУП \"Борисовские тепловые сети\"","3103004884","310301001",null,null,"HOT_VS"]
[9,"2587","Белгородская область","26540592","МУП \"Вейделевские тепловые сети\"","3105004110","310501001",null,null,"HOT_VS"]
[10,"2587","Белгородская область","26540606","МУП \"Грайворон теплоэнерго\"","3108007409","310801001",null,null,"HOT_VS"]
[11,"2587","Белгородская область","26540594","МУП \"Ракитянские тепловые сети\"","3116006007","311601001",null,null,"HOT_VS"]
[12,"2587","Белгородская область","26540632","МУП \"Тепловая компания\" Новоскольского района","3114009690","311401001",null,null,"HOT_VS"]
[13,"2587","Белгородская область","26540614","МУП \"Тепловик\"","3110008865","311001001",null,null,"HOT_VS"]
[14,"2587","Белгородская область","26540574","МУП \"Тепловые сети Белгородского района\"","3102204827","310201001",null,null,"HOT_VS"]
[15,"2587","Белгородская область","26540636","МУП \"Тепловые сети\" Прохоровского района","3115006251","311501001",null,null,"HOT_VS"]
[16,"2587","Белгородская область","26540596","МУП \"Теплоком\" Чернянского района","3119007810","311901001",null,null,"HOT_VS"]
[17,"2587","Белгородская область","26466658","МУП ЖКХ \"Красненское\"","3112261983","311201001",null,null,"HOT_VS"]
[18,"2587","Белгородская область","26540642","ОАО \"Теплоэнерго\"","3128089632","312801001",null,null,"HOT_VS"]
[19,"2587","Белгородская область","30358310","ОАО \"ЭФКО\"","3122000300","312250001","12-11-2015 00:00:00",null,"HOT_VS"]
[20,"2587","Белгородская область","27545553","ООО \"Белрегионтеплоэнерго\"","3123088748","312101001",null,null,"HOT_VS"]
[21,"2587","Белгородская область","28501059","ООО \"Губкинская тепловая компания\"","3127013052","312701001",null,null,"HOT_VS"]
[22,"2587","Белгородская область","26319219","ООО \"ДРЭП ДСК\"","3123057563","312301001",null,null,"HOT_VS"]
[23,"2587","Белгородская область","27815216","ООО \"УК\"Тальвег\"","3123164830","312301001",null,null,"HOT_VS"]
[24,"2587","Белгородская область","26651971","ООО \"Цитробел\"","3123189383","312301001",null,null,"HOT_VS"]
[25,"2587","Белгородская область","26540598","ООО РИТЭК","3120086767","312001001",null,null,"HOT_VS"]
[26,"2587","Белгородская область","26619778","ООО Управляющая компания \"СИРИУС\"","3123095914","312301001",null,null,"HOT_VS"]
[27,"2587","Белгородская область","28795205","ООО Энергосервисная компания \"СИРИУС\"","3123344670","312301001",null,null,"HOT_VS"]
[28,"2587","Белгородская область","30366049","ОП \"Воронежское\" АО \"ГУ ЖКХ\"","5116000922","366445001","21-10-2015 00:00:00",null,"HOT_VS"]
[29,"2587","Белгородская область","26526453","ПАО \"Квадра\" (по месту нахождения филиала ПАО \"Квадра\" - \"Белгородская генерация\" в г. Белгороде)","6829012680","312343001",null,null,"HOT_VS"]
[30,"2587","Белгородская область","30903763","ФГБУ \"ЦЖКУ\" МИНОБОРОНЫ РОССИИ","7729314745","770101001",null,null,"HOT_VS"]
[31,"2587","Белгородская область","30941480","Филиал ФГБУ \"ЦЖКУ\" Минобороны России по ЗВО","7729314745","784243001",null,null,"HOT_VS"]
[32,"2587","Белгородская область","28830393","ШМУП \"Шебекинские тепловые сети\"","3120086460","312001001",null,null,"HOT_VS"]

{"sheet":"modClassifierValidate","index":36,"n_rows":0,"n_cols":0,"rows_kept":0,"hidden":true}

{"sheet":"modHyp","index":37,"n_rows":0,"n_cols":0,"rows_kept":0,"hidden":true}

{"sheet":"modfrmDateChoose","index":38,"n_rows":0,"n_cols":0,"rows_kept":0,"hidden":true}

{"sheet":"modComm","index":39,"n_rows":0,"n_cols":0,"rows_kept":0,"hidden":true}

{"sheet":"modThisWorkbook","index":40,"n_rows":0,"n_cols":0,"rows_kept":0,"hidden":true}

{"sheet":"REESTR_MO","index":41,"n_rows":15,"n_cols":4,"rows_kept":15,"hidden":true}
["№","МР","МО","МО_ОКТМО"]
[1,"Яковлевский муниципальный район","Смородинское","14658448"]
[2,"Яковлевский муниципальный район","Быковское","14658412"]
[3,"Яковлевский муниципальный район","Бутовское","14658408"]
[4,"Яковлевский муниципальный район","поселок Томаровка","14658160"]
[5,"Яковлевский муниципальный район","город Строитель","14658101"]
[6,"Яковлевский муниципальный район","Казацкое","14658432"]
[7,"Яковлевский муниципальный район","Гостищевское","14658416"]
[8,"Яковлевский муниципальный район","Кривцовское","14658436"]
[9,"Яковлевский муниципальный район","Стрелецкое","14658456"]
[10,"Яковлевский муниципальный район","поселок Яковлево","14658170"]
[11,"Яковлевский муниципальный район","Завидовское","14658428"]
[12,"Яковлевский муниципальный район","Дмитриевское","14658420"]
[13,"Яковлевский муниципальный район","Терновское","14658460"]
[14,"Яковлевский муниципальный район","Алексеевское","14658404"]

{"sheet":"modfrmReestrMR","index":42,"n_rows":0,"n_cols":0,"rows_kept":0,"hidden":true}

{"sheet":"modServiceModule","index":43,"n_rows":0,"n_cols":0,"rows_kept":0,"hidden":true}

{"sheet":"modfrmCheckUpdates","index":44,"n_rows":0,"n_cols":0,"rows_kept":0,"hidden":true}

{"sheet":"REESTR_DS","index":45,"n_rows":5,"n_cols":2,"rows_kept":5,"hidden":true}
[]
[]
[null,"Яковлевский муниципальный район, город Строитель (14658101);\nЯковлевский муниципальный район, поселок Яковлево (14658170);\nЯковлевский муниципальный район, Дмитриевское (14658420);\nЯковлевский муниципальный район, Завидовское (14658428);\nЯковлевский муниципальный район, поселок Томаровка (14658160);\nЯковлевский муниципальный район, Алексеевское (14658404);\nЯковлевский муниципальный район, Гостищевское (14658416);"]
[null,"описание 2"]
[null,"Добавить "]

{"sheet":"REESTR_CHS","index":46,"n_rows":0,"n_cols":0,"rows_kept":0,"hidden":true}

{"sheet":"REESTR_LINK","index":47,"n_rows":2,"n_cols":3,"rows_kept":2,"hidden":true}
["ID","LINK_NAME","REGION"]
[64275710,"https://tariff.eias.ru/disclo/get_file?p_guid=????????-????-????-????-????????????","ALL"]